[Event "Late-Titled-Tuesday-Blitz-April-16-2024"]
[Site "Chess.com"]
[Date "2024.04.16"]
[Round "9"]
[White "SpeedofLight0"]
[Black "Hasangatin_Ramil"]
[Result "1-0"]
[WhiteElo "3032"]
[BlackElo "2647"]
[TimeControl "180+1"]
[EndTime "15:44:08 PDT"]
[Termination "SpeedofLight0 won on time"]

1. d4 {[%clk 0:03:00.9]} 1... d6 {[%clk 0:02:59.8]} 2. e4 {[%clk 0:03:00.1]}
2... Nf6 {[%clk 0:02:59.4]} 3. Nc3 {[%clk 0:02:59.6]} 3... e5 {[%clk 0:03:00]}
4. Nf3 {[%clk 0:02:59.4]} 4... Nbd7 {[%clk 0:02:59.8]} 5. Bc4 {[%clk 0:02:59.4]}
5... Be7 {[%clk 0:03:00.3]} 6. O-O {[%clk 0:02:59.6]} 6... O-O {[%clk
0:03:00.8]} 7. Re1 {[%clk 0:03:00.1]} 7... c6 {[%clk 0:03:01.2]} 8. a4 {[%clk
0:03:00.2]} 8... exd4 {[%clk 0:03:01.8]} 9. Nxd4 {[%clk 0:02:59.9]} 9... Ne5
{[%clk 0:03:02.7]} 10. Bf1 {[%clk 0:02:59.5]} 10... Re8 {[%clk 0:03:03]} 11. h3
{[%clk 0:02:59.1]} 11... Qc7 {[%clk 0:03:01.2]} 12. Be3 {[%clk 0:02:58.8]} 12...
Bd7 {[%clk 0:03:00.9]} 13. f4 {[%clk 0:02:58.3]} 13... Ng6 {[%clk 0:03:00.6]}
14. Qf3 {[%clk 0:02:57.1]} 14... a6 {[%clk 0:02:58.3]} 15. a5 {[%clk 0:02:56.6]}
15... c5 {[%clk 0:02:58.2]} 16. Nb3 {[%clk 0:02:50.4]} 16... Bc6 {[%clk
0:02:58]} 17. Rad1 {[%clk 0:02:48.5]} 17... Bf8 {[%clk 0:02:57.4]} 18. Bf2
{[%clk 0:02:44.7]} 18... Nxe4 {[%clk 0:02:39.3]} 19. Nxe4 {[%clk 0:02:39.7]}
19... Rxe4 {[%clk 0:02:26.8]} 20. Rxe4 {[%clk 0:02:34.9]} 20... f5 {[%clk
0:02:26.6]} 21. Nxc5 {[%clk 0:02:08.5]} 21... fxe4 {[%clk 0:02:12.2]} 22. Nxe4
{[%clk 0:02:07.3]} 22... Qxa5 {[%clk 0:01:51.2]} 23. Qb3+ {[%clk 0:01:55.5]}
23... d5 {[%clk 0:01:51]} 24. f5 {[%clk 0:01:28.6]} 24... Ne5 {[%clk 0:01:32.5]}
25. Ng5 {[%clk 0:01:10]} 25... Bc5 {[%clk 0:01:24.3]} 26. Ne6 {[%clk 0:00:52.9]}
26... Bxf2+ {[%clk 0:01:21.3]} 27. Kxf2 {[%clk 0:00:53.8]} 27... Re8 {[%clk
0:00:45.7]} 28. Rd4 {[%clk 0:00:38.1]} 28... Nd7 {[%clk 0:00:23.6]} 29. Qg3
{[%clk 0:00:26]} 29... Re7 {[%clk 0:00:21.4]} 30. Rg4 {[%clk 0:00:18.1]} 30...
Qb6+ {[%clk 0:00:12.3]} 31. Ke1 {[%clk 0:00:17.5]} 31... Qa5+ {[%clk 0:00:08.4]}
32. b4 {[%clk 0:00:12.4]} 32... Qa1+ {[%clk 0:00:07.9]} 33. Kd2 {[%clk
0:00:13.1]} 33... Qf6 {[%clk 0:00:04.5]} 34. Bd3 {[%clk 0:00:11.9]} 34... Ne5
{[%clk 0:00:04.4]} 35. Rf4 {[%clk 0:00:06.9]} 35... Nc4+ {[%clk 0:00:03.9]} 36.
Bxc4 {[%clk 0:00:05.4]} 36... dxc4 {[%clk 0:00:04.5]} 37. Rd4 {[%clk 0:00:04.4]}
1-0

[Event "Late-Titled-Tuesday-Blitz-April-16-2024"]
[Site "Chess.com"]
[Date "2024.04.16"]
[Round "9"]
[White "BenchGM"]
[Black "Lady_Nika"]
[Result "0-1"]
[WhiteElo "2305"]
[BlackElo "2478"]
[TimeControl "180+1"]
[EndTime "15:44:08 PDT"]
[Termination "Lady_Nika won on time"]

1. e4 {[%clk 0:03:00]} 1... c5 {[%clk 0:02:59.9]} 2. Nf3 {[%clk 0:02:59.8]} 2...
Nc6 {[%clk 0:02:59.5]} 3. d4 {[%clk 0:02:59.2]} 3... cxd4 {[%clk 0:02:58.1]} 4.
Nxd4 {[%clk 0:03:00.1]} 4... g6 {[%clk 0:02:58.9]} 5. c4 {[%clk 0:02:55.9]} 5...
Bg7 {[%clk 0:02:58.1]} 6. Be3 {[%clk 0:02:55.9]} 6... d6 {[%clk 0:02:55.8]} 7.
Nc3 {[%clk 0:02:51]} 7... Nf6 {[%clk 0:02:55.5]} 8. Be2 {[%clk 0:02:51]} 8...
O-O {[%clk 0:02:55.1]} 9. O-O {[%clk 0:02:50.1]} 9... e5 {[%clk 0:02:51.6]} 10.
Ndb5 {[%clk 0:02:38.8]} 10... Ne8 {[%clk 0:02:47.3]} 11. c5 {[%clk 0:02:24.7]}
11... a6 {[%clk 0:02:44.3]} 12. Nxd6 {[%clk 0:02:19.9]} 12... Nxd6 {[%clk
0:02:44.3]} 13. Qxd6 {[%clk 0:02:17.1]} 13... Qa5 {[%clk 0:02:43.9]} 14. Nd5
{[%clk 0:02:04.2]} 14... Be6 {[%clk 0:02:37.3]} 15. Ne7+ {[%clk 0:01:50.1]}
15... Nxe7 {[%clk 0:02:35.7]} 16. Qxe7 {[%clk 0:01:50.2]} 16... Rfd8 {[%clk
0:02:31.9]} 17. Rfd1 {[%clk 0:01:30]} 17... Bf8 {[%clk 0:02:30.6]} 18. Rxd8
{[%clk 0:01:23]} 18... Rxd8 {[%clk 0:02:31.5]} 19. Qxb7 {[%clk 0:01:22.7]} 19...
Bxc5 {[%clk 0:02:30]} 20. Bg5 {[%clk 0:00:58.7]} 20... Rd6 {[%clk 0:02:22.8]}
21. Bf6 {[%clk 0:00:50.6]} 21... Rd7 {[%clk 0:02:13.2]} 22. Qb8+ {[%clk
0:00:46.1]} 22... Bf8 {[%clk 0:02:12.5]} 23. Rc1 {[%clk 0:00:31.7]} 23... Qb4
{[%clk 0:00:40.5]} 24. Qxb4 {[%clk 0:00:15.4]} 24... Bxb4 {[%clk 0:00:41.4]} 25.
Rc8+ {[%clk 0:00:13.5]} 25... Bf8 {[%clk 0:00:41.5]} 26. f3 {[%clk 0:00:11.5]}
26... Rb7 {[%clk 0:00:35.6]} 27. Rc2 {[%clk 0:00:09.5]} 27... Bg7 {[%clk
0:00:30.9]} 28. Bxg7 {[%clk 0:00:09.1]} 28... Kxg7 {[%clk 0:00:31.8]} 29. Bxa6
{[%clk 0:00:08.2]} 29... Ra7 {[%clk 0:00:30.1]} 30. Bc4 {[%clk 0:00:07.9]} 30...
Bxc4 {[%clk 0:00:29.6]} 31. Rxc4 {[%clk 0:00:08.2]} 31... Rxa2 {[%clk
0:00:30.2]} 32. Rb4 {[%clk 0:00:07]} 32... f5 {[%clk 0:00:28.4]} 33. Rb5 {[%clk
0:00:05]} 33... Kf6 {[%clk 0:00:25.9]} 34. exf5 {[%clk 0:00:03]} 34... Kxf5
{[%clk 0:00:24.4]} 35. Kf2 {[%clk 0:00:03.4]} 35... h5 {[%clk 0:00:23.4]} 36.
Ke3 {[%clk 0:00:03.2]} 36... Ra1 {[%clk 0:00:21.6]} 37. Kd3 {[%clk 0:00:01.3]}
37... Rd1+ {[%clk 0:00:21.1]} 0-1

[Event "Late-Titled-Tuesday-Blitz-April-16-2024"]
[Site "Chess.com"]
[Date "2024.04.16"]
[Round "9"]
[White "Leebit02"]
[Black "JoakimVonAnd"]
[Result "1-0"]
[WhiteElo "2574"]
[BlackElo "2685"]
[TimeControl "180+1"]
[EndTime "15:44:12 PDT"]
[Termination "Leebit02 won on time"]

1. d4 {[%clk 0:03:00.1]} 1... d5 {[%clk 0:02:59.2]} 2. c4 {[%clk 0:02:59.6]}
2... e6 {[%clk 0:02:59.8]} 3. Nf3 {[%clk 0:02:59.7]} 3... Nf6 {[%clk 0:02:59.7]}
4. g3 {[%clk 0:02:59.9]} 4... h6 {[%clk 0:02:59]} 5. Bg2 {[%clk 0:02:57.7]} 5...
Bd6 {[%clk 0:02:58.6]} 6. O-O {[%clk 0:02:56.4]} 6... O-O {[%clk 0:02:58.7]} 7.
b3 {[%clk 0:02:52.9]} 7... b6 {[%clk 0:02:56.8]} 8. Qc2 {[%clk 0:02:37.5]} 8...
Nbd7 {[%clk 0:02:51.3]} 9. Nc3 {[%clk 0:02:34]} 9... Bb7 {[%clk 0:02:51.5]} 10.
cxd5 {[%clk 0:02:25.2]} 10... Nxd5 {[%clk 0:02:51]} 11. Nb5 {[%clk 0:02:14.4]}
11... N5f6 {[%clk 0:02:37.6]} 12. Nxd6 {[%clk 0:02:11.7]} 12... cxd6 {[%clk
0:02:38.5]} 13. Ba3 {[%clk 0:02:11.6]} 13... Be4 {[%clk 0:02:32.5]} 14. Qd2
{[%clk 0:02:09.9]} 14... Qb8 {[%clk 0:02:09.8]} 15. Qb4 {[%clk 0:02:00.9]} 15...
Ne8 {[%clk 0:01:57.8]} 16. Rfc1 {[%clk 0:02:00.7]} 16... Qb7 {[%clk 0:01:52.5]}
17. Qc3 {[%clk 0:01:42.3]} 17... Ndf6 {[%clk 0:01:42.7]} 18. Ne1 {[%clk
0:01:27.9]} 18... Bxg2 {[%clk 0:01:37.9]} 19. Nxg2 {[%clk 0:01:28.2]} 19... b5
{[%clk 0:01:37.5]} 20. Qc6 {[%clk 0:01:25]} 20... Rb8 {[%clk 0:01:35.2]} 21. Bb4
{[%clk 0:01:18.6]} 21... Nd5 {[%clk 0:01:32.6]} 22. Ba5 {[%clk 0:01:18.8]} 22...
Qe7 {[%clk 0:01:16.4]} 23. e4 {[%clk 0:01:14.4]} 23... Ndf6 {[%clk 0:01:15]} 24.
Ne3 {[%clk 0:01:11.9]} 24... g5 {[%clk 0:00:59.6]} 25. Bb4 {[%clk 0:00:57.7]}
25... Rb6 {[%clk 0:00:54.8]} 26. Qc2 {[%clk 0:00:55.1]} 26... Qb7 {[%clk
0:00:50.9]} 27. e5 {[%clk 0:00:51.4]} 27... Nd5 {[%clk 0:00:45.8]} 28. Ba5
{[%clk 0:00:30.4]} 28... Ra6 {[%clk 0:00:43.4]} 29. Bd2 {[%clk 0:00:27.1]} 29...
dxe5 {[%clk 0:00:35.2]} 30. dxe5 {[%clk 0:00:26.9]} 30... Ng7 {[%clk 0:00:34.3]}
31. Ng4 {[%clk 0:00:27]} 31... Nf5 {[%clk 0:00:29.1]} 32. Qe4 {[%clk 0:00:21.9]}
32... Qe7 {[%clk 0:00:21.2]} 33. Rc2 {[%clk 0:00:18.1]} 33... Rd8 {[%clk
0:00:20.2]} 34. Rac1 {[%clk 0:00:18.4]} 34... h5 {[%clk 0:00:20.4]} 35. Ne3
{[%clk 0:00:13]} 35... Ndxe3 {[%clk 0:00:20.8]} 36. Bxe3 {[%clk 0:00:13.4]}
36... b4 {[%clk 0:00:19.1]} 37. Rc7 {[%clk 0:00:13]} 37... Rd7 {[%clk
0:00:15.9]} 38. Qb7 {[%clk 0:00:12.6]} 38... Rxc7 {[%clk 0:00:08.7]} 39. Rxc7
{[%clk 0:00:13.3]} 39... Qd8 {[%clk 0:00:04.8]} 40. Rc8 {[%clk 0:00:13.7]} 1-0

[Event "Late-Titled-Tuesday-Blitz-April-16-2024"]
[Site "Chess.com"]
[Date "2024.04.16"]
[Round "9"]
[White "FMOlexandrProhorov"]
[Black "simaopdias"]
[Result "0-1"]
[WhiteElo "2270"]
[BlackElo "2251"]
[TimeControl "180+1"]
[EndTime "15:44:12 PDT"]
[Termination "simaopdias won on time"]

1. d4 {[%clk 0:02:46.2]} 1... Nf6 {[%clk 0:02:59.2]} 2. Bg5 {[%clk 0:02:45.1]}
2... Ne4 {[%clk 0:02:57.1]} 3. Bf4 {[%clk 0:02:42]} 3... d5 {[%clk 0:02:57]} 4.
f3 {[%clk 0:02:41.3]} 4... Nf6 {[%clk 0:02:56.9]} 5. e3 {[%clk 0:02:41.7]} 5...
e6 {[%clk 0:02:55.9]} 6. Bd3 {[%clk 0:02:41.8]} 6... Bd6 {[%clk 0:02:55.2]} 7.
Ne2 {[%clk 0:02:40.2]} 7... O-O {[%clk 0:02:55]} 8. O-O {[%clk 0:02:39.9]} 8...
b6 {[%clk 0:02:54.6]} 9. Bg5 {[%clk 0:02:35.8]} 9... Nbd7 {[%clk 0:02:52.8]} 10.
c4 {[%clk 0:02:35]} 10... Bb7 {[%clk 0:02:52.2]} 11. Nbc3 {[%clk 0:02:34.6]}
11... h6 {[%clk 0:02:52.3]} 12. Bh4 {[%clk 0:02:34.3]} 12... c5 {[%clk
0:02:50.9]} 13. cxd5 {[%clk 0:02:32.2]} 13... exd5 {[%clk 0:02:50.9]} 14. Rc1
{[%clk 0:02:33.1]} 14... Re8 {[%clk 0:02:49.8]} 15. Qd2 {[%clk 0:02:32.5]} 15...
Rc8 {[%clk 0:02:39.9]} 16. Bf5 {[%clk 0:02:22.6]} 16... c4 {[%clk 0:02:38.6]}
17. Bxd7 {[%clk 0:02:12.6]} 17... Qxd7 {[%clk 0:02:34]} 18. Bxf6 {[%clk
0:02:12.5]} 18... gxf6 {[%clk 0:02:34.2]} 19. e4 {[%clk 0:02:09.2]} 19... dxe4
{[%clk 0:02:26.1]} 20. fxe4 {[%clk 0:01:58.9]} 20... Qg4 {[%clk 0:02:14.9]} 21.
Qxh6 {[%clk 0:01:52.7]} 21... Rxe4 {[%clk 0:01:46.1]} 22. Qxf6 {[%clk
0:00:48.1]} 22... Rxe2 {[%clk 0:01:09.4]} 23. Qxf7+ {[%clk 0:00:47.6]} 23... Kh8
{[%clk 0:01:08.9]} 24. Qf6+ {[%clk 0:00:46.6]} 24... Kg8 {[%clk 0:01:04.6]} 25.
Qf7+ {[%clk 0:00:44.2]} 25... Kh8 {[%clk 0:01:04.7]} 26. Qxb7 {[%clk 0:00:41.3]}
26... Bxh2+ {[%clk 0:00:27.9]} 27. Kh1 {[%clk 0:00:25.2]} 27... Bg3 {[%clk
0:00:19.2]} 28. Qe4 {[%clk 0:00:04.9]} 28... Rxe4 {[%clk 0:00:18.1]} 29. Nxe4
{[%clk 0:00:04.8]} 29... Qh4+ {[%clk 0:00:17.1]} 30. Kg1 {[%clk 0:00:04.3]}
30... Qxe4 {[%clk 0:00:17.7]} 31. Rf3 {[%clk 0:00:02.1]} 31... Qxd4+ {[%clk
0:00:16.9]} 32. Kf1 {[%clk 0:00:01.9]} 32... Qxb2 {[%clk 0:00:12]} 33. Rd1
{[%clk 0:00:01.1]} 33... Be5 {[%clk 0:00:08.8]} 34. Rh3+ {[%clk 0:00:01]} 34...
Kg7 {[%clk 0:00:08.9]} 35. Rf3 {[%clk 0:00:01.9]} 35... Rf8 {[%clk 0:00:08.9]}
36. Rxf8 {[%clk 0:00:01.6]} 36... Kxf8 {[%clk 0:00:09.3]} 0-1

[Event "Late-Titled-Tuesday-Blitz-April-16-2024"]
[Site "Chess.com"]
[Date "2024.04.16"]
[Round "9"]
[White "jaskol95"]
[Black "Oleg_Papayan"]
[Result "1-0"]
[WhiteElo "2557"]
[BlackElo "2667"]
[TimeControl "180+1"]
[EndTime "15:44:13 PDT"]
[Termination "jaskol95 won on time"]

1. e4 {[%clk 0:03:00.9]} 1... d5 {[%clk 0:02:59.7]} 2. exd5 {[%clk 0:02:58.8]}
2... Qxd5 {[%clk 0:03:00.6]} 3. Nc3 {[%clk 0:02:59]} 3... Qd8 {[%clk 0:03:00.9]}
4. Nf3 {[%clk 0:02:58.9]} 4... c6 {[%clk 0:03:01.5]} 5. g3 {[%clk 0:02:59.5]}
5... Bf5 {[%clk 0:02:58.4]} 6. Bg2 {[%clk 0:03:00]} 6... e6 {[%clk 0:02:58.9]}
7. d3 {[%clk 0:03:00.6]} 7... Be7 {[%clk 0:02:59.3]} 8. O-O {[%clk 0:03:01.3]}
8... Nf6 {[%clk 0:02:59.4]} 9. b3 {[%clk 0:03:01.4]} 9... O-O {[%clk 0:02:59.1]}
10. Bb2 {[%clk 0:03:01.9]} 10... Nbd7 {[%clk 0:02:59.7]} 11. Re1 {[%clk
0:03:02.5]} 11... h6 {[%clk 0:03:00.2]} 12. Ne4 {[%clk 0:03:03.1]} 12... Nc5
{[%clk 0:02:47.7]} 13. Bxf6 {[%clk 0:02:55.8]} 13... Bxf6 {[%clk 0:02:48.6]} 14.
Nxc5 {[%clk 0:02:54.8]} 14... Bxa1 {[%clk 0:02:45.4]} 15. Qxa1 {[%clk
0:02:54.4]} 15... Qe7 {[%clk 0:02:05.6]} 16. Qe5 {[%clk 0:02:47.1]} 16... Rfe8
{[%clk 0:01:57.1]} 17. Ne4 {[%clk 0:02:35.7]} 17... Rad8 {[%clk 0:01:56.1]} 18.
Qa5 {[%clk 0:02:21.3]} 18... b6 {[%clk 0:01:49.8]} 19. Qa4 {[%clk 0:02:20.9]}
19... Qc7 {[%clk 0:01:41.7]} 20. Qc4 {[%clk 0:01:55.1]} 20... b5 {[%clk
0:01:30.2]} 21. Qc3 {[%clk 0:01:52.7]} 21... Qb6 {[%clk 0:01:12]} 22. Nc5 {[%clk
0:01:48.7]} 22... Rd5 {[%clk 0:00:54.2]} 23. d4 {[%clk 0:01:46.8]} 23... Red8
{[%clk 0:00:50.7]} 24. b4 {[%clk 0:01:40]} 24... Bg4 {[%clk 0:00:47.9]} 25. Re4
{[%clk 0:01:23.9]} 25... Bf5 {[%clk 0:00:25]} 26. Re3 {[%clk 0:01:23.5]} 26...
R5d6 {[%clk 0:00:17.7]} 27. Qb2 {[%clk 0:01:18.8]} 27... Ra8 {[%clk 0:00:13.4]}
28. c3 {[%clk 0:01:18.1]} 28... a5 {[%clk 0:00:13.9]} 29. a3 {[%clk 0:01:17.2]}
29... axb4 {[%clk 0:00:14]} 30. axb4 {[%clk 0:01:17.7]} 30... Qa7 {[%clk
0:00:14.5]} 31. Re1 {[%clk 0:01:07.9]} 31... Qa3 {[%clk 0:00:13.6]} 32. Qd2
{[%clk 0:01:06.5]} 32... Qa2 {[%clk 0:00:11.9]} 33. Qe3 {[%clk 0:01:05.3]} 33...
Ra3 {[%clk 0:00:10.1]} 34. Ne5 {[%clk 0:01:04.2]} 34... Qb2 {[%clk 0:00:08.7]}
35. Rc1 {[%clk 0:00:47]} 35... Ra1 {[%clk 0:00:09]} 36. Nb3 {[%clk 0:00:42]}
36... Ra3 {[%clk 0:00:03.6]} 37. Nc5 {[%clk 0:00:39.8]} 37... Ra1 {[%clk
0:00:03.9]} 38. Re1 {[%clk 0:00:21.7]} 38... Ra3 {[%clk 0:00:03.9]} 39. Ne4
{[%clk 0:00:16.2]} 39... Bxe4 {[%clk 0:00:03.7]} 40. Bxe4 {[%clk 0:00:17.1]}
40... Rxc3 {[%clk 0:00:04]} 41. Qf4 {[%clk 0:00:17.8]} 41... f6 {[%clk
0:00:04.1]} 42. Nd3 {[%clk 0:00:18.3]} 42... Rxd3 {[%clk 0:00:01.7]} 43. Qxd6
{[%clk 0:00:15.4]} 1-0

[Event "Late-Titled-Tuesday-Blitz-April-16-2024"]
[Site "Chess.com"]
[Date "2024.04.16"]
[Round "9"]
[White "rhwr"]
[Black "Eloist"]
[Result "0-1"]
[WhiteElo "2240"]
[BlackElo "2451"]
[TimeControl "180+1"]
[EndTime "15:44:14 PDT"]
[Termination "Eloist won on time"]

1. e4 {[%clk 0:03:00.9]} 1... e6 {[%clk 0:02:59.5]} 2. Nf3 {[%clk 0:02:59.7]}
2... d5 {[%clk 0:02:59.6]} 3. e5 {[%clk 0:02:59.7]} 3... c5 {[%clk 0:02:59.4]}
4. b4 {[%clk 0:03:00.3]} 4... cxb4 {[%clk 0:02:59.3]} 5. a3 {[%clk 0:03:00.5]}
5... Nc6 {[%clk 0:02:59.4]} 6. d4 {[%clk 0:03:00.1]} 6... Bd7 {[%clk 0:02:54.7]}
7. Bd3 {[%clk 0:02:59.2]} 7... bxa3 {[%clk 0:02:49.4]} 8. Bxa3 {[%clk
0:02:58.3]} 8... Bxa3 {[%clk 0:02:31.4]} 9. Nxa3 {[%clk 0:02:59.2]} 9... a6
{[%clk 0:02:27.3]} 10. c3 {[%clk 0:02:56.8]} 10... Nge7 {[%clk 0:02:25.8]} 11.
O-O {[%clk 0:02:54.5]} 11... h6 {[%clk 0:02:23.4]} 12. c4 {[%clk 0:02:44.8]}
12... O-O {[%clk 0:02:12.4]} 13. c5 {[%clk 0:02:41.6]} 13... f6 {[%clk
0:01:59.7]} 14. exf6 {[%clk 0:02:39.1]} 14... Rxf6 {[%clk 0:01:58.9]} 15. Rb1
{[%clk 0:02:33]} 15... Qc7 {[%clk 0:01:49.2]} 16. Rb6 {[%clk 0:02:27.3]} 16...
Rxf3 {[%clk 0:01:34.9]} 17. gxf3 {[%clk 0:02:26.3]} 17... Nxd4 {[%clk
0:01:32.5]} 18. Nc2 {[%clk 0:01:53.2]} 18... Nxc2 {[%clk 0:01:10]} 19. Qxc2
{[%clk 0:01:49.4]} 19... Rf8 {[%clk 0:00:57.7]} 20. Rfb1 {[%clk 0:01:44.4]}
20... Bc6 {[%clk 0:00:55.1]} 21. Kg2 {[%clk 0:01:34.8]} 21... Qf4 {[%clk
0:00:53.6]} 22. Qe2 {[%clk 0:01:14]} 22... Rf6 {[%clk 0:00:39.7]} 23. R1b4
{[%clk 0:01:04.5]} 23... Qc1 {[%clk 0:00:34]} 24. Rg4 {[%clk 0:00:47.2]} 24...
Qxc5 {[%clk 0:00:30.2]} 25. Rb1 {[%clk 0:00:44.3]} 25... Qd6 {[%clk 0:00:23.2]}
26. Rg1 {[%clk 0:00:40]} 26... e5 {[%clk 0:00:14.4]} 27. Kh1 {[%clk 0:00:34.5]}
27... Rf7 {[%clk 0:00:13.7]} 28. Bg6 {[%clk 0:00:27.9]} 28... Nxg6 {[%clk
0:00:11]} 29. Rxg6 {[%clk 0:00:28.8]} 29... Qc7 {[%clk 0:00:09.1]} 30. Rxh6
{[%clk 0:00:25.7]} 30... e4 {[%clk 0:00:09.2]} 31. f4 {[%clk 0:00:13.3]} 31...
d4 {[%clk 0:00:08.5]} 32. Rg2 {[%clk 0:00:10.7]} 32... e3 {[%clk 0:00:08.3]} 33.
f3 {[%clk 0:00:10.7]} 33... Qxf4 {[%clk 0:00:08.2]} 34. Rh3 {[%clk 0:00:09.5]}
34... Bxf3 {[%clk 0:00:07.7]} 35. Rxf3 {[%clk 0:00:08.4]} 35... Qxf3 {[%clk
0:00:08.6]} 36. Qe1 {[%clk 0:00:03.9]} 36... Qf1+ {[%clk 0:00:07.2]} 37. Qxf1
{[%clk 0:00:03.5]} 37... Rxf1+ {[%clk 0:00:08.1]} 38. Rg1 {[%clk 0:00:03.4]}
38... e2 {[%clk 0:00:08.4]} 39. Kg2 {[%clk 0:00:02]} 39... Rxg1+ {[%clk
0:00:08.3]} 40. Kxg1 {[%clk 0:00:01.6]} 40... e1=Q+ {[%clk 0:00:08.8]} 0-1

[Event "Late-Titled-Tuesday-Blitz-April-16-2024"]
[Site "Chess.com"]
[Date "2024.04.16"]
[Round "9"]
[White "hristos03"]
[Black "FMYiLiu"]
[Result "0-1"]
[WhiteElo "2364"]
[BlackElo "2472"]
[TimeControl "180+1"]
[EndTime "15:44:17 PDT"]
[Termination "FMYiLiu won by resignation"]

1. Nf3 {[%clk 0:02:59.3]} 1... d5 {[%clk 0:03:00.1]} 2. c4 {[%clk 0:02:59]} 2...
c6 {[%clk 0:02:59.5]} 3. d4 {[%clk 0:02:58.3]} 3... e6 {[%clk 0:02:59.4]} 4. g3
{[%clk 0:02:55.2]} 4... dxc4 {[%clk 0:02:59.5]} 5. a4 {[%clk 0:02:54.6]} 5... b5
{[%clk 0:02:59.3]} 6. Bg2 {[%clk 0:02:53.7]} 6... Bb7 {[%clk 0:02:59.7]} 7. Ne5
{[%clk 0:02:51.9]} 7... Qb6 {[%clk 0:02:52]} 8. O-O {[%clk 0:02:42.5]} 8... Nf6
{[%clk 0:02:51.9]} 9. Na3 {[%clk 0:02:29.9]} 9... a6 {[%clk 0:02:47.6]} 10. b3
{[%clk 0:02:18]} 10... c3 {[%clk 0:02:21.3]} 11. Qd3 {[%clk 0:02:11.1]} 11... b4
{[%clk 0:02:06.1]} 12. Nac4 {[%clk 0:02:10.6]} 12... Qc7 {[%clk 0:02:06.7]} 13.
e4 {[%clk 0:01:56]} 13... a5 {[%clk 0:02:03.9]} 14. g4 {[%clk 0:01:25.2]} 14...
Be7 {[%clk 0:01:58.7]} 15. g5 {[%clk 0:01:20.2]} 15... Nfd7 {[%clk 0:01:57.3]}
16. Bf4 {[%clk 0:01:14.4]} 16... Qd8 {[%clk 0:01:51.4]} 17. h4 {[%clk
0:01:09.4]} 17... O-O {[%clk 0:01:42.9]} 18. Qg3 {[%clk 0:01:03.4]} 18... Nxe5
{[%clk 0:01:40.8]} 19. Bxe5 {[%clk 0:00:57.9]} 19... Ba6 {[%clk 0:01:29.9]} 20.
Bc7 {[%clk 0:00:35]} 20... Qe8 {[%clk 0:01:19.5]} 21. h5 {[%clk 0:00:27.4]}
21... Nd7 {[%clk 0:01:06.6]} 22. h6 {[%clk 0:00:21.4]} 22... g6 {[%clk
0:01:04.7]} 23. Rfd1 {[%clk 0:00:19.9]} 23... Bxc4 {[%clk 0:01:04.4]} 24. bxc4
{[%clk 0:00:20.8]} 24... Qc8 {[%clk 0:00:45.3]} 25. d5 {[%clk 0:00:16.3]} 25...
Nc5 {[%clk 0:00:18.7]} 26. Qe5 {[%clk 0:00:10.4]} 26... f6 {[%clk 0:00:17.3]}
27. gxf6 {[%clk 0:00:07.2]} 27... Bxf6 {[%clk 0:00:18.2]} 28. Qg3 {[%clk
0:00:07.8]} 28... c2 {[%clk 0:00:14.5]} 29. Rdc1 {[%clk 0:00:05.9]} 29... Bxa1
{[%clk 0:00:14.6]} 30. Rxa1 {[%clk 0:00:06.8]} 30... b3 {[%clk 0:00:13.3]} 31.
Qe5 {[%clk 0:00:06.1]} 31... Qd7 {[%clk 0:00:12.4]} 32. Bd6 {[%clk 0:00:04.6]}
32... Nd3 {[%clk 0:00:11.9]} 33. Qd4 {[%clk 0:00:04.2]} 33... b2 {[%clk
0:00:08.7]} 34. Bh3 {[%clk 0:00:02.8]} 34... bxa1=Q+ {[%clk 0:00:07.7]} 35. Qxa1
{[%clk 0:00:02.9]} 35... c1=Q+ {[%clk 0:00:07.9]} 36. Qxc1 {[%clk 0:00:03.4]}
36... Nxc1 {[%clk 0:00:08.8]} 37. Bxe6+ {[%clk 0:00:03.7]} 37... Qxe6 {[%clk
0:00:09.3]} 38. dxe6 {[%clk 0:00:04.6]} 38... Rfe8 {[%clk 0:00:09.2]} 39. e7
{[%clk 0:00:04.9]} 39... Ra7 {[%clk 0:00:09.2]} 40. c5 {[%clk 0:00:04.3]} 40...
Raxe7 {[%clk 0:00:09.6]} 41. e5 {[%clk 0:00:04.9]} 41... Rxe5 {[%clk 0:00:09.8]}
0-1